bitfinex-derivatives/quotes_ETHF0:USTF0_20220106
["timestamp","ask_amount","ask_price","bid_price","bid_amount"]
[1641457481307,4.0,3433.6,3432.4,8.31696217]
[1641457481506,0.4,3434.6,3432.4,8.31696217]
[1641457481507,4.0,3433.0,3432.4,8.31696217]
[1641457481711,4.00958,3432.5,3432.4,8.05217417]
[1641457481910,4.00958,3432.5,3432.4,8.85966517]
[1641457482108,4.00479001,3432.5,3432.4,8.85966517]
[1641457482508,5.25806701,3432.5,3432.4,8.85966517]
[1641457482710,4.00479001,3432.5,3432.4,8.85966517]
[1641457483110,4.73919001,3432.5,3430.0,2.00479]
[1641457483307,4.73919001,3432.5,3427.8,31.3356]
[1641457483308,4.0,3431.5,3427.8,31.3356]
[1641457483510,0.6098,3431.5,3427.4,12.41]
[1641457483709,2.00479,3430.0,3429.8,1.5]
[1641457483910,2.00479,3430.0,3429.5,1.5]
[1641457484110,2.00479,3430.0,3429.1,1.5]
[1641457484310,2.00479,3430.0,3428.7,1.5]
[1641457484512,2.00479,3430.0,3425.1,1.45]
[1641457484513,1.45823824,3429.8,3428.5,1.5]
[1641457484911,4.665879,3429.7,3427.8,1.45823824]
[1641457485110,4.665879,3429.7,3424.9,35.816]
[1641457485111,1.45841051,3429.4,3427.4,1.45841051]
[1641457485511,4.668397,3429.8,3429.3,1.5]
[1641457485709,4.668397,3429.8,3427.9,1.45820847]
[1641457485710,6.12660547,3429.9,3429.7,1.5]
[1641457485910,2.00479,3430.0,3429.8,0.229991]
[1641457486118,2.00479,3430.0,3429.9,1.5]
[1641457487116,2.00479,3430.0,3429.8,0.856494]
[1641457487313,2.00479,3430.0,3429.4,1.5]
[1641457487513,2.00479,3430.0,3429.4,1.632394]
[1641457487913,2.62204406,3430.0,3429.4,0.132394]
[1641457488913,2.62204406,3430.0,3428.2,2.00479]
[1641457488914,2.62204406,3430.0,3428.6,1.5]
[1641457489114,2.78689,3430.0,3428.2,2.00479]
[1641457489314,4.665675,3429.9,3428.2,2.00479]
[1641457489514,1.4585275,3429.1,3428.2,2.00479]
[1641457489717,2.00479,3429.0,3428.7,1.5]
[1641457489914,2.00479,3429.0,3428.2,2.00479]
[1641457490521,2.00479,3429.0,3427.9,3.50479]
[1641457490522,2.00479,3429.0,3428.8,1.5]
[1641457490718,2.00479,3429.0,3428.0,1.5]
[1641457490918,4.666627,3428.9,3428.0,1.5]
[1641457491119,4.666627,3428.9,3427.2,1.5]
[1641457491326,1.459051,3427.9,3426.7,1.5]
[1641457491619,1.45922559,3427.5,3426.3,0.62375442]
[1641457491821,2.00479,3427.1,3426.3,2.62854442]
[1641457492021,2.00479,3427.1,3425.9,2.62854442]
[1641457492022,2.59939,3427.1,3425.9,2.62854442]
[1641457492226,1.45958554,3426.6,3425.9,2.62854442]
[1641457492423,5.54546058,3427.0,3425.9,2.62854442]
[1641457492623,2.59939,3427.1,3425.9,2.62854442]
[1641457492624,4.669828,3426.5,3426.3,0.62375442]
[1641457492822,2.59939,3427.1,3426.4,0.62375442]
[1641457493024,2.59939,3427.1,3425.9,0.62375442]
[1641457493223,0.87624558,3427.0,3425.9,0.62375442]
[1641457493426,0.87624558,3426.9,3425.9,0.62375442]
[1641457493624,4.669147,3427.0,3425.9,0.62375442]
[1641457493824,4.00958,3426.0,3425.9,0.62375442]
[1641457494123,9.349417,3426.0,3425.9,0.62375442]
[1641457494525,9.349417,3426.0,3424.4,1.9974856]
[1641457494926,1.22315925,3428.0,3424.4,1.9974856]
[1641457495127,1.22315925,3428.0,3424.4,2.8764856]
[1641457495526,1.5,3427.0,3424.4,2.8764856]
[1641457495727,2.00479,3425.8,3425.0,2.00479]
[1641457496028,2.00479,3425.8,3425.1,0.132394]
[1641457496225,2.00479,3425.8,3424.7,2.00479]
[1641457497028,0.61933611,3423.1,3422.9,4.0]
[1641457497229,0.61933611,3423.1,3423.0,0.362385]
[1641457497430,2.00479,3425.8,3423.0,0.362385]
[1641457497826,2.00479,3425.8,3424.4,2.00479]
[1641457498731,4.671396,3425.7,3420.6,31.2547]
[1641457499029,4.671396,3425.7,3420.7,4.0]
[1641457499231,4.671396,3425.7,3420.5,4.0]
[1641457499434,1.5,3424.7,3420.6,0.86725624]
[1641457499632,4.0,3424.6,3420.6,0.86725624]
[1641457499834,2.00479,3422.7,3421.9,2.00479]
[1641457500033,2.55059,3422.7,3422.0,0.132394]
[1641457500835,2.55059,3422.7,3421.9,2.00479]
[1641457501233,2.55059,3422.7,3422.0,0.132394]
[1641457501635,0.6074,3424.7,3422.0,0.132394]
[1641457501835,2.00479,3423.8,3423.0,2.00479]
[1641457502035,2.00479,3423.8,3423.1,0.132394]
[1641457502538,4.673647,3423.7,3423.0,2.00479]
[1641457502735,4.673647,3423.7,3423.0,0.1587254]
[1641457503135,2.00479,3423.8,3423.1,0.132394]
[1641457503337,2.00479,3424.1,3423.1,0.974994]
[1641457503735,2.00479,3424.1,3423.5,2.00479]
[1641457503936,2.00479,3424.1,3423.6,0.132394]
[1641457504436,2.00479,3424.6,3423.7,1.01715381]
[1641457504635,1.5,3426.8,3423.1,0.69975412]
[1641457504834,12.41,3427.6,3423.2,12.41]
[1641457505035,4.0,3427.3,3423.2,12.41]
[1641457505238,16.41,3427.9,3423.2,12.41]
[1641457505437,1.5,3428.3,3423.2,12.41]
[1641457505635,1.5,3428.3,3423.7,4.0]
[1641457505836,2.00479,3426.2,3425.4,2.00479]
[1641457506039,2.00479,3426.6,3425.4,0.17687762]
[1641457506440,2.00479,3426.6,3425.5,1.00982579]
[1641457506838,4.670169,3426.5,3425.5,1.00982579]
[1641457507240,2.00479,3426.6,3425.5,1.00982579]
[1641457507639,2.00479,3426.6,3424.6,12.41]
[1641457507640,2.00479,3426.6,3424.6,9.90724213]
[1641457507843,2.00479,3425.9,3425.1,2.00479]
[1641457508044,2.00479,3425.9,3425.1,2.58499]
[1641457508241,2.00479,3425.9,3424.8,2.00479]
[1641457508643,9e-05,3425.9,3424.8,2.00479]
[1641457509444,9e-05,3425.9,3424.9,1.22785255]
[1641457512548,9e-05,3425.9,3424.9,14.35845255]
[1641457512749,33.98885266,3428.1,3425.6,13.8692043]
[1641457512950,33.98885266,3428.1,3425.6,11.35313743]
[1641457513148,32.48885266,3428.1,3425.6,11.35313743]
[1641457513746,2.00479,3427.4,3426.6,2.00479]
[1641457513948,2.00479,3427.4,3426.6,2.75379]
[1641457514150,0.132394,3427.3,3426.6,2.75379]
[1641457514448,0.634084,3427.4,3426.3,0.64017121]
[1641457514647,0.634084,3427.4,3426.4,0.73465204]
[1641457515248,0.634084,3427.4,3426.4,1.35045204]
[1641457515449,0.634084,3427.4,3426.3,0.64017121]
[1641457516448,0.634084,3427.4,3426.5,1.45871685]
[1641457516649,0.634084,3427.4,3426.0,0.61612739]
[1641457517049,0.634084,3427.4,3426.0,13.02612739]
[1641457517748,0.634084,3427.4,3426.1,1.33145675]
[1641457517749,2.00479,3426.7,3426.1,1.33145675]
[1641457517949,2.00479,3426.7,3426.2,0.132394]
[1641457518448,9e-05,3426.7,3426.2,0.132394]
[1641457519753,9e-05,3426.7,3426.5,1.45869345]
[1641457519950,0.634084,3427.4,3426.6,0.362385]
[1641457520153,0.634084,3427.4,3426.7,1.24137986]
[1641457520450,0.634084,3427.4,3426.8,0.132394]
[1641457520852,1.5,3428.9,3426.8,0.7049]
[1641457521052,1.5,3429.1,3426.8,0.7049]
[1641457521252,1.5,3429.1,3426.9,12.41]
[1641457521454,31.9843,3430.2,3426.9,12.41]
[1641457521652,4.667444,3429.0,3426.9,12.41]
[1641457521853,2.00479,3427.6,3426.9,9.11606612]
[1641457522053,1.97549,3427.6,3427.0,1.2363241]
[1641457522353,2.00479,3427.9,3427.1,9.11606612]
[1641457523057,0.132394,3427.8,3427.1,9.11606612]
[1641457523256,1.5,3427.6,3426.8,2.00479]
[1641457523456,0.132394,3427.5,3426.8,2.00479]
[1641457523754,1.5,3426.9,3425.4,5.467]
[1641457523956,0.8256,3426.9,3425.8,2.00479]
[1641457524155,1.5,3426.6,3425.8,2.00479]
[1641457524354,0.132394,3426.5,3425.8,14.41479]
[1641457524557,0.8256,3426.9,3426.0,12.41]
[1641457524754,2.00479,3427.0,3426.0,12.41]
[1641457525154,2.00479,3427.0,3425.8,2.00479]
[1641457525357,2.00479,3427.0,3426.0,12.41]
[1641457525555,2.00479,3427.0,3426.5,1.0]
[1641457525858,2.00479,3426.6,3426.5,1.0]
[1641457526056,2.87529,3426.6,3426.5,1.0]
[1641457526254,4.507684,3426.6,3426.5,1.0]
[1641457526655,3.007684,3426.6,3426.5,1.0]
[1641457527459,3.007684,3426.6,3425.3,2.00479]
[1641457527857,2.00479,3426.1,3425.3,2.00479]
[1641457528460,2.00479,3426.6,3425.4,12.41]
[1641457528659,2.00479,3426.6,3425.6,12.41]
[1641457528860,2.00479,3426.6,3425.6,13.1042]
[1641457529263,1.5,3428.1,3425.6,13.1042]
[1641457529459,0.091,3428.2,3426.9,12.41]
[1641457529657,1.22315925,3428.8,3426.9,13.2457]
[1641457529858,1.22315925,3428.8,3427.3,2.00479]
[1641457529859,2.00479,3428.1,3427.3,2.00479]
[1641457530057,2.00479,3428.1,3427.4,12.41]
[1641457530459,2.00479,3428.1,3427.3,2.00479]
[1641457530460,0.091,3427.8,3427.3,2.00479]
[1641457530759,2.09579,3428.1,3427.3,2.00479]
[1641457530963,0.091,3427.8,3427.3,2.00479]
[1641457531160,1.591,3427.4,3426.1,1.0]
[1641457531359,29.40999999,3426.2,3421.3,63.1968]
[1641457531560,1.5,3424.0,3421.5,0.6067]
[1641457531757,2.3537,3424.0,3421.5,0.6067]
[1641457531958,2.3537,3424.0,3419.7,30.9694]
[1641457531959,2.00479,3423.5,3422.8,12.41]
[1641457532159,0.99989,3423.5,3422.8,12.41]
[1641457532358,1.5,3422.9,3422.7,2.00479]
[1641457532559,1.5,3422.9,3419.8,31.1758]
[1641457532560,0.1509,3422.9,3420.5,1.5]
[1641457533162,2.914008,3422.8,3420.6,12.41]
[1641457533759,2.914008,3422.8,3420.8,12.41]
[1641457533961,2.00479,3421.9,3421.2,12.41]
[1641457534160,2.00479,3422.2,3421.5,12.41]
[1641457534360,1.46056831,3423.9,3421.9,1.46056831]
[1641457534560,1.46056831,3423.9,3422.0,12.41]
[1641457534761,1.22315925,3425.5,3422.7,12.41]
[1641457534962,1.22315925,3425.5,3423.9,1.45973681]
[1641457535162,1.22315925,3425.5,3423.9,0.7759]
[1641457535362,1.5,3424.7,3423.9,0.7759]
[1641457535563,0.132394,3424.6,3423.5,1.0]
[1641457535761,2.917727,3424.6,3423.5,1.0]
[1641457535961,4.00958,3423.6,3423.5,1.0]
[1641457536163,4.141974,3423.6,3423.5,1.0]
[1641457536362,8.429862,3423.6,3423.5,1.0]
[1641457536563,4.00958,3423.6,3423.5,1.0]
[1641457536962,0.84813438,3422.6,3422.4,12.41]
[1641457537164,6.556851,3423.6,3422.1,2.00479]
[1641457537363,4.00958,3423.6,3422.2,12.41]
[1641457537562,4.00958,3423.6,3422.1,2.00479]
[1641457537762,4.00958,3423.6,3422.2,0.83976059]
[1641457537763,2.548634,3423.5,3422.2,0.83976059]
[1641457537963,2.00479,3422.5,3422.2,0.83976059]
[1641457538162,0.132394,3422.4,3422.2,0.83976059]
[1641457538563,1.5,3422.3,3418.7,35.0131]
[1641457538764,1.5,3422.4,3419.4,1.5]
[1641457538966,2.914028,3422.2,3418.6,33.24984067]
[1641457539164,2.914028,3422.2,3419.2,1.5]
[1641457539364,1.5,3422.4,3419.3,12.41]
[1641457539566,2.918,3422.1,3419.3,12.41]
[1641457539765,3.6525,3422.1,3419.8,12.41]
[1641457539966,1.46176605,3421.1,3419.4,1.12323453]
[1641457540166,0.5991,3421.1,3419.4,1.12323453]
[1641457540368,2.916522,3421.0,3419.4,13.53323453]
[1641457540568,1.916522,3421.0,3419.4,1.12323453]
[1641457540967,1.5,3420.7,3419.4,1.12323453]
[1641457541168,4.0,3419.6,3416.4,1.5]
[1641457541380,2.0529,3419.6,3416.4,1.5]
[1641457541568,4.678768,3419.5,3417.5,1.5]
[1641457541766,4.678768,3419.5,3416.5,13.91]
[1641457542068,2.00479,3418.6,3417.8,2.00479]
[1641457542267,2.64719,3418.6,3416.4,0.4481]
[1641457542466,1.5,3417.8,3416.3,0.4369]
[1641457542670,0.671,3417.8,3416.2,32.11073023]
[1641457542866,4.682401,3417.7,3416.2,5.0]
[1641457543165,0.671,3417.8,3416.2,5.0]
[1641457543166,24.6555632,3418.4,3416.9,1.46273892]
[1641457543366,1.5,3417.3,3416.2,5.0]
[1641457543568,1.5,3416.5,3416.2,3.5474]
[1641457543768,2.2819,3416.5,3414.5,0.433]
[1641457543969,1.5,3416.1,3413.8,2.00479]
[1641457544170,4.00958,3416.3,3413.8,2.00479]
[1641457544369,3.80804,3416.0,3413.8,2.00479]
[1641457544667,3.541416,3416.2,3413.8,2.00479]
[1641457544867,4.00958,3416.3,3413.8,2.00479]
[1641457545068,1.5,3415.5,3413.4,2.00479]
[1641457545267,1.5,3415.2,3413.4,2.00479]
[1641457545468,1.5,3415.1,3412.7,0.4395]
[1641457545667,4.0,3414.8,3413.0,5.2422387]
[1641457545867,2.00479,3413.5,3413.0,5.2422387]
[1641457546068,2.65479,3413.5,3413.0,5.2422387]
[1641457546268,0.065968,3413.4,3413.0,5.2422387]
[1641457546570,0.833768,3413.4,3413.0,5.1172387]
[1641457546767,0.7678,3413.4,3413.0,5.1172387]
[1641457546969,0.081819,3413.3,3413.0,5.1172387]
[1641457547368,4.0,3414.9,3413.0,5.1172387]
[1641457547570,4.0,3414.9,3413.5,1.0]
[1641457547769,0.053981,3414.8,3413.9,1.0]
[1641457547969,0.053981,3414.8,3414.6,1.0]
[1641457548169,0.053981,3414.8,3414.7,0.132394]
[1641457548769,3.05789812,3415.0,3414.7,0.132394]
[1641457548972,3.05789812,3415.0,3414.9,1.0]
[1641457549173,3.05789812,3415.0,3414.9,1.132394]
[1641457549370,2.91089812,3415.0,3414.9,4.09597213]
[1641457549570,2.65699819,3415.2,3414.9,4.09574296]
[1641457549770,4.58684718,3416.0,3415.1,2.5]
[1641457549972,3.17784718,3416.0,3415.9,5.00958]
[1641457550174,3.12192872,3416.2,3415.9,8.94420021]
[1641457550370,3.12192872,3416.2,3416.1,1.0]
[1641457550570,3.12192872,3416.2,3416.1,1.132394]
[1641457550972,3.12192872,3416.2,3416.1,1.362385]
[1641457551374,3.12192872,3416.2,3415.9,2.85338]
[1641457551574,3.12192872,3416.2,3415.2,1.0]
[1641457551774,1.794657,3416.1,3415.2,1.0]
[1641457551973,2.00479,3416.4,3415.6,2.00479]
[1641457553375,2.920493,3416.3,3416.2,1.0]
[1641457553577,2.920493,3416.3,3416.2,3.96284591]
[1641457553776,0.61950931,3416.3,3416.2,3.96269399]
[1641457553992,0.61950931,3416.3,3416.2,4.637184]
[1641457554174,2.00479,3417.4,3416.2,3.137184]
[1641457554377,2.83105601,3417.8,3417.3,1.0]
[1641457554575,2.83105601,3417.8,3417.7,1.0]
[1641457554778,2.82705601,3417.8,3417.7,1.229991]
[1641457554978,2.00479,3417.8,3417.6,0.132394]
[1641457555178,2.00479,3417.8,3417.7,1.0]
[1641457555377,2.00479,3417.8,3417.6,0.132394]
[1641457555579,2.00479,3417.8,3417.7,1.0]
[1641457555978,2.830557,3417.8,3417.7,1.46239666]
[1641457556181,2.830557,3417.8,3417.4,2.00479]
[1641457556379,0.7248,3417.8,3417.4,2.00479]
[1641457556580,2.990795,3417.7,3414.7,5.57849868]
[1641457556780,2.990795,3417.7,3415.8,1.0]
[1641457557081,2.990795,3417.7,3416.7,1.0]
[1641457557880,4.682195,3418.1,3417.5,2.5]
[1641457558080,4.682195,3418.1,3418.0,1.0]
[1641457558379,2.00479,3418.2,3418.0,1.0]
[1641457558779,2.00479,3418.2,3417.7,1.0]
[1641457559179,2.00479,3418.2,3417.8,0.132394]
[1641457559380,2.00479,3418.2,3417.8,1.632394]
[1641457559583,3.14634354,3418.6,3418.1,1.0]
[1641457559779,3.14634354,3418.6,3418.5,2.5]
[1641457559981,2.00479,3419.0,3418.5,2.729991]
[1641457560182,2.00479,3419.0,3418.2,2.00479]
[1641457560480,2.00479,3419.0,3418.6,0.132394]
[1641457560681,2.00479,3419.0,3418.2,1.25314705]
[1641457560880,2.00479,3419.0,3418.3,0.132394]
[1641457561084,2.00479,3419.0,3417.8,2.00479]
[1641457561281,2.00479,3419.0,3416.5,0.6067]
[1641457561482,4.68021,3418.9,3416.5,11.65219868]
[1641457561683,5.33221,3418.9,3417.8,4.12754491]
[1641457561884,2.00479,3417.9,3417.8,4.12754491]
[1641457562483,2.00479,3417.9,3417.8,4.25993891]
[1641457563086,6.686095,3417.9,3417.8,4.25993891]
[1641457563287,6.686095,3417.9,3417.8,0.132394]
[1641457563487,2.00479,3417.9,3417.8,1.59466663]
[1641457563689,3.93271792,3419.9,3417.8,1.67127563]
[1641457563888,2.00479,3418.8,3418.1,2.00479]
[1641457564091,2.00479,3419.2,3419.1,1.46178314]
[1641457564690,1.88910324,3419.6,3419.1,1.67078614]
[1641457564889,1.88910324,3419.6,3419.1,0.209003]
[1641457565689,1.88910324,3419.6,3419.1,1.59418355]
[1641457565889,1.88910324,3419.6,3419.4,2.00479]
[1641457566090,0.229991,3419.5,3419.4,2.00479]
[1641457566293,0.229991,3419.5,3419.1,2.00479]
[1641457566493,0.229991,3419.5,3419.1,2.137184]
[1641457566693,0.229991,3419.5,3419.2,1.46172972]
[1641457566895,0.229991,3419.5,3418.6,1.4619883]
[1641457567095,0.876091,3419.5,3418.6,1.4619883]
[1641457567296,4.679251,3419.4,3418.6,1.4619883]
[1641457567495,4.679251,3419.4,3418.7,0.132394]
[1641457568097,2.00479,3418.8,3418.7,0.132394]
[1641457568296,2.234781,3418.8,3418.7,0.132394]
[1641457568495,1.88910324,3420.1,3418.7,0.132394]
[1641457568696,1.88910324,3420.1,3418.7,0.970294]
[1641457568895,1.88910324,3420.1,3418.8,1.4618964]
[1641457569097,1.88910324,3420.1,3419.0,1.5]
[1641457569098,4.679183,3420.0,3419.0,1.5]
[1641457569297,4.679183,3420.0,3418.9,1.5]
[1641457569598,1.88910324,3420.4,3419.6,1.46154599]
[1641457569799,1.88910324,3420.4,3419.7,0.132394]
[1641457569998,2.00479,3420.2,3419.7,0.132394]
[1641457570198,2.00479,3420.2,3419.7,12.542394]
[1641457570598,2.00479,3420.2,3420.1,12.41]
[1641457570799,2.00479,3420.2,3420.1,12.619003]
[1641457571003,26.27717499,3420.2,3418.8,3.30190497]
[1641457571201,2.96284591,3418.9,3417.8,3.54405389]
[1641457571399,0.6933,3418.9,3417.8,3.54405389]
[1641457571602,4.68062,3418.8,3417.8,3.54405389]
[1641457571900,0.6933,3418.9,3417.8,3.54405389]
[1641457572100,4.00958,3417.9,3417.8,3.54405389]
[1641457572302,4.239571,3417.9,3417.6,0.132394]
[1641457572701,4.239571,3417.9,3416.9,0.4449]
[1641457572702,0.132394,3417.8,3416.9,0.4449]
[1641457573101,4.813836,3417.8,3416.9,0.4449]
[1641457573601,4.00958,3417.9,3417.2,12.41]
[1641457573802,4.00958,3417.9,3417.4,1.46249932]
[1641457574003,2.00479,3417.5,3417.4,1.46249932]
[1641457574203,2.00479,3417.5,3417.4,1.59489332]
[1641457574402,2.00479,3417.5,3417.4,14.00489332]
[1641457574602,2.00479,3417.5,3417.4,1.59489332]
[1641457575103,2.00479,3417.5,3417.4,0.132394]
[1641457575504,2.00479,3417.5,3417.3,0.132394]
[1641457576004,2.00479,3417.9,3417.3,0.132394]
[1641457576404,2.00479,3417.9,3417.3,12.542394]
[1641457576604,2.00479,3417.9,3417.4,1.4625036]
[1641457576805,2.00479,3417.9,3417.5,0.132394]
[1641457577406,2.00479,3417.9,3417.5,12.542394]
[1641457578305,2.00479,3418.5,3417.8,12.41]
[1641457578505,1.88910324,3419.4,3418.1,12.41]
[1641457578806,1.88910324,3419.4,3417.9,0.132394]
[1641457578807,1.88910324,3419.4,3418.3,12.41]
[1641457579005,1.88910324,3419.4,3418.3,0.6948]
[1641457579207,1.88910324,3419.4,3418.4,12.41]
[1641457579410,1.88910324,3419.4,3418.7,12.41]
[1641457579608,1.88910324,3419.4,3418.8,0.132394]
[1641457579808,2.02149724,3419.4,3418.8,0.132394]
[1641457580011,2.00479,3419.0,3418.8,0.132394]
[1641457580709,2.00479,3419.0,3418.4,0.2859938]
[1641457580910,2.83799,3419.0,3418.5,0.132394]
[1641457581411,2.83799,3419.0,3418.7,12.41]
[1641457581610,2.00479,3419.0,3418.8,0.132394]
[1641457581810,1.25839635,3419.3,3418.9,12.41]
[1641457582010,1.25839635,3419.3,3418.8,1.59430109]
[1641457582011,1.88910324,3419.8,3419.3,12.41]
[1641457582210,2.36137905,3420.0,3419.7,13.91]
[1641457582410,2.36137905,3420.0,3419.7,13.87150114]
[1641457582613,2.36137905,3420.0,3419.8,0.132394]
[1641457583210,2.36137905,3420.9,3419.8,0.132394]
[1641457583411,0.132394,3420.2,3419.8,0.132394]
[1641457583614,1.8888601,3420.6,3419.8,0.132394]
[1641457583812,1.8888601,3420.6,3419.8,12.542394]
[1641457584111,3.3888601,3420.6,3420.1,2.00479]
[1641457584312,3.3888601,3420.6,3420.1,2.137184]
[1641457584612,1.5,3420.2,3419.2,2.00479]
[1641457584813,1.5,3419.3,3419.2,2.00479]
[1641457585014,2.416885,3419.3,3419.1,4.12941508]
[1641457585913,2.284491,3419.3,3419.1,4.12941508]
[1641457586113,6.684247,3419.2,3419.0,1.0]
[1641457586313,1.729991,3419.1,3418.1,4.12941508]
[1641457586512,1.5,3418.4,3418.1,4.12941508]
[1641457586714,0.6055,3418.4,3418.1,4.12941508]
[1641457587114,0.229991,3418.3,3418.1,4.12941508]
[1641457587314,0.229991,3418.3,3418.2,0.132394]
[1641457587717,1.729991,3418.3,3417.9,2.00479]
[1641457587915,0.45481375,3419.1,3417.9,2.00479]
[1641457588114,2.00479,3418.4,3417.9,2.00479]
[1641457588316,2.80869,3418.4,3418.0,0.132394]
[1641457590220,2.80869,3418.4,3417.3,6.13420508]
[1641457590221,1.5,3418.1,3417.3,4.12941508]
[1641457590424,2.80869,3418.4,3417.5,4.41540888]
[1641457590425,1.5,3417.7,3417.5,4.41540888]
[1641457590617,0.076609,3417.6,3417.5,4.41540888]
[1641457590820,4.758256,3417.6,3417.5,4.41540888]
[1641457591021,6.258256,3417.6,3417.5,4.41540888]
[1641457591219,6.39065,3417.6,3417.5,4.41340888]
[1641457591418,4.89065,3417.6,3417.5,4.41340888]
[1641457591619,6.39065,3417.6,3417.5,4.41340888]
[1641457591820,4.89065,3417.6,3417.5,0.2859938]
[1641457592120,10.40023,3417.6,3417.2,0.132394]
[1641457592322,1.5,3417.3,3417.2,0.132394]
[1641457592620,6.258736,3417.3,3417.2,0.132394]
[1641457593020,5.258736,3417.3,3416.9,0.577294]
[1641457593422,3.758736,3417.3,3416.9,0.577294]
[1641457593620,3.758736,3417.3,3416.9,0.4449]
[1641457593621,1.5,3417.2,3416.9,0.4449]
[1641457593821,1.5,3417.0,3416.5,0.4294]
[1641457594022,1.5,3416.6,3416.5,0.4294]
[1641457594222,2.00479,3416.6,3416.3,4.54173079]
[1641457594425,6.687876,3416.6,3416.3,4.98863079]
[1641457594923,2.00479,3416.6,3416.4,0.132394]
[1641457595123,2.00479,3416.6,3416.4,0.6483788]
[1641457595326,1.25890287,3418.2,3416.5,12.41]
[1641457595524,1.5,3417.9,3416.5,1.46290797]
[1641457595723,1.5,3417.9,3416.4,1.1710938]
[1641457595724,1.25890287,3418.2,3416.4,1.1710938]
[1641457595923,1.25890287,3418.2,3416.7,1.5]
[1641457596124,1.25890287,3418.2,3417.4,2.00479]
[1641457596125,3.26369287,3418.2,3417.4,2.00479]
[1641457596324,3.26369287,3418.2,3417.5,0.132394]
[1641457596723,3.26369287,3418.2,3417.5,12.542394]
[1641457596925,3.26369287,3418.2,3417.8,12.41]
[1641457597124,3.26369287,3418.2,3417.9,0.132394]
[1641457597326,3.26369287,3418.2,3418.1,12.41]
[1641457597525,3.26369287,3418.2,3418.1,12.9429]
[1641457597727,2.00479,3418.2,3418.1,13.075294]
[1641457597929,2.00479,3418.2,3418.1,0.665294]
[1641457598126,2.00479,3418.2,3418.1,13.075294]
[1641457599128,2.00479,3418.2,3418.1,2.31531059]
[1641457599528,2.00479,3418.2,3418.1,15.16130439]
[1641457599927,1.80431101,3418.2,3418.1,15.16130439]
[1641457600128,1.80431101,3418.2,3418.1,2.60130439]
[1641457600330,1.80431101,3418.2,3418.1,2.06840439]
[1641457600529,1.80431101,3418.2,3418.1,2.29839539]
[1641457601129,1.80431101,3418.2,3418.1,14.85839539]
[1641457601729,1.80431101,3418.2,3418.1,2.29839539]
[1641457601931,3.30431101,3418.2,3418.1,1.93601039]
[1641457602329,3.43670501,3418.2,3418.1,1.93601039]
[1641457602732,3.43670501,3418.2,3418.0,1.65001659]
[1641457602733,8.88829901,3418.2,3418.0,1.65001659]
[1641457602932,1.5,3418.1,3418.0,1.65001659]
[1641457603140,0.5,3418.1,3418.0,1.65001659]
[1641457603338,5.181031,3418.1,3418.0,1.65001659]
[1641457603540,16.64421937,3418.1,3418.0,1.65001659]
[1641457603740,0.132394,3418.0,3417.2,3.28788877]
[1641457603940,0.5,3417.3,3417.2,4.6035166]
[1641457604144,5.09758,3417.3,3417.2,1.31562783]
[1641457604340,11.37549493,3417.3,3417.2,1.31562783]
[1641457604940,10.87549493,3417.3,3417.2,1.31562783]
[1641457605340,10.87549493,3417.3,3416.1,3.28788877]
[1641457605540,10.87549493,3417.3,3416.0,1.0]
[1641457605742,0.5,3417.2,3415.9,12.56]
[1641457605941,11.34980093,3417.3,3416.1,12.56]
[1641457606142,2.00479,3416.5,3416.1,12.56]
[1641457606343,2.00479,3416.5,3416.2,0.132394]
[1641457606540,2.00479,3416.5,3416.3,0.229991]
[1641457606743,2.00479,3416.5,3416.4,0.132394]
[1641457607542,2.00479,3417.3,3416.4,12.692394]
[1641457607744,2.00479,3417.3,3416.4,13.692394]
[1641457607943,2.00479,3417.3,3416.4,12.692394]
[1641457608143,2.00479,3417.3,3416.7,1.46280739]
[1641457608446,2.00479,3417.3,3416.8,0.132394]
[1641457608644,2.00479,3417.3,3417.2,1.0]
[1641457608844,2.00479,3417.3,3417.1,0.132394]
[1641457609043,2.00479,3417.3,3417.2,1.0]
[1641457609646,2.00479,3417.3,3417.2,0.132394]
[1641457610346,2.00479,3417.3,3417.2,1.362385]
[1641457610745,0.5,3418.1,3417.2,14.779085]
[1641457610948,0.5,3418.1,3417.2,2.219085]
[1641457611146,0.5,3418.1,3417.2,1.219085]
[1641457611345,0.5,3418.1,3417.2,1.989094]
[1641457611552,0.5,3418.1,3417.2,0.989094]
[1641457611945,0.5,3418.1,3417.2,0.132394]
[1641457612148,2.00479,3417.5,3417.2,0.132394]
[1641457612345,2.00479,3417.5,3417.3,0.229991]
[1641457612548,2.00479,3417.5,3417.4,0.132394]
[1641457612747,2.00479,3417.5,3417.1,1.97366337]
[1641457612946,2.66929,3417.5,3417.1,1.97366337]
[1641457613147,0.5,3417.4,3417.1,1.97366337]
[1641457613346,5.314452,3417.4,3417.1,1.97366337]
[1641457613751,4.814452,3417.4,3417.1,1.97366337]
[1641457614150,2.00479,3417.2,3417.1,1.97366337]
[1641457614451,2.00479,3417.2,3417.0,1.132394]
[1641457614649,2.00479,3417.2,3417.0,0.132394]
[1641457615049,2.00479,3417.2,3417.1,1.0]
[1641457615250,2.00479,3417.2,3417.0,0.132394]
[1641457615449,2.00479,3417.2,3417.1,1.0]
[1641457615651,2.00479,3417.2,3417.0,0.132394]
[1641457615849,2.00479,3417.2,3417.1,1.0]
[1641457617053,2.00479,3417.2,3417.1,1.229991]
[1641457618855,2.00479,3417.2,3417.1,1.0]
[1641457619054,2.00479,3417.2,3417.1,1.229991]
[1641457619255,2.00479,3417.2,3417.0,0.132394]
[1641457619657,2.00479,3417.2,3417.1,1.0]